bitfinex/quotes_ETHUSD_20251218
["timestamp","ask_amount","ask_price","bid_price","bid_amount"]
[1766065544207,2.1665,2938.3,2937.1,6.70058228]
[1766065544382,0.04254305,2938.2,2937.1,6.70058228]
[1766065544710,0.582,2938.5,2937.2,2.4198]
[1766065544920,0.002,2939.7,2937.9,0.09523648]
[1766065545211,0.582,2939.6,2938.3,8.14576815]
[1766065545381,0.582,2939.6,2938.4,0.59474673]
[1766065545571,0.582,2939.6,2938.6,7.6722]
[1766065545772,0.002,2939.7,2938.8,2.4198]
[1766065545975,0.002,2939.7,2939.2,3.40228633]
[1766065546174,0.002,2939.7,2939.2,7.6722]
[1766065546374,0.002,2939.7,2939.1,3.40240136]
[1766065546582,0.002,2939.7,2939.1,6.7001216]
[1766065546997,0.002,2939.7,2938.6,8.34943648]
[1766065547394,0.002,2939.7,2938.9,5.2524]
[1766065547873,0.002,2939.7,2938.6,0.09523648]
[1766065548074,3.4037149,2939.7,2938.5,8.54625149]
[1766065548272,2.1673,2939.4,2938.1,2.4198]
[1766065548475,0.582,2939.3,2938.2,7.6722]
[1766065549077,0.04252857,2939.2,2938.1,0.582]
[1766065549380,2.528004,2939.0,2937.7,5.2524]
[1766065549592,2.63168023,2938.8,2937.2,8.2542]
[1766065549780,2.63168023,2938.8,2937.3,5.2524]
[1766065549781,1.52179825,2938.7,2937.3,5.2524]
[1766065549982,6.80619362,2938.5,2937.3,5.2524]
[1766065550180,0.04254015,2938.4,2937.2,3.0018]
[1766065550578,8.97349362,2938.5,2937.2,3.0018]
[1766065550778,0.04254015,2938.4,2937.2,3.0018]
[1766065550999,6.80619362,2938.5,2937.3,5.2524]
[1766065551175,2.67422038,2938.4,2937.2,0.582]
[1766065551802,2.1673,2939.6,2937.5,5.2524]
[1766065552117,3.40183308,2939.6,2938.0,5.34763648]
[1766065552416,0.42941,2939.6,2938.3,7.6722]
[1766065552579,0.42941,2939.6,2938.2,5.2524]
[1766065552778,0.002,2939.7,2938.6,5.2524]
[1766065552999,0.002,2939.7,2938.8,7.6722]
[1766065554007,0.002,2939.7,2939.0,7.6722]
[1766065554210,0.002,2939.7,2939.1,5.2524]
[1766065554614,0.002,2939.7,2938.4,0.09523648]
[1766065554615,0.04452134,2939.7,2938.3,7.6722]
[1766065554925,0.04452134,2939.7,2938.6,0.581]
[1766065555331,0.002,2939.7,2939.1,5.2524]
[1766065555636,0.003,2939.8,2939.1,5.2524]
[1766065555808,0.002,2940.1,2939.5,5.2524]
[1766065557003,0.0042,2940.8,2939.7,5.2524]
[1766065557202,0.0042,2940.8,2939.8,3.52604]
[1766065557400,0.0042,2940.8,2939.8,8.77844]
[1766065558404,0.0042,2940.8,2940.0,5.2524]
[1766065558800,0.0042,2940.8,2939.2,7.6722]
[1766065558801,2.1715,2940.8,2939.2,7.6722]
[1766065559000,2.1386,2940.5,2939.0,2.51503648]
[1766065559309,2.1673,2940.4,2939.1,0.83250365]
[1766065559505,2.1395,2940.3,2939.2,0.581]
[1766065559929,0.21386,2940.5,2939.2,0.581]
[1766065560236,2.1673,2940.0,2938.6,5.2524]
[1766065560409,2.1673,2939.9,2938.7,0.581]
[1766065560756,3.40069546,2940.6,2938.7,0.67623648]
[1766065561032,0.581,2940.5,2939.2,7.6722]
[1766065561228,0.581,2940.5,2939.3,0.581]
[1766065561442,0.73823909,2940.4,2939.3,0.581]
[1766065561753,0.405504,2940.1,2938.3,0.581]
[1766065561908,0.44801956,2940.1,2938.3,0.581]
[1766065562105,0.04251556,2940.1,2938.5,0.09523648]
[1766065562305,0.22098156,2940.1,2938.8,5.2524]
[1766065562536,0.73823909,2940.4,2939.1,2.4198]
[1766065562839,2.60538023,2940.5,2939.1,7.6722]
[1766065562840,0.581,2940.3,2939.1,7.6722]
[1766065563035,0.581,2940.3,2939.2,5.2524]
[1766065563436,0.002,2940.1,2939.2,5.2524]
[1766065563757,0.002,2940.1,2939.1,0.581]
[1766065564050,2.1673,2940.0,2938.6,7.6722]
[1766065564215,0.47794001,2939.9,2938.9,0.581]
[1766065564716,0.43542156,2939.9,2938.9,0.581]
[1766065564913,2.1444,2940.1,2938.9,5.8334]
[1766065564914,0.002,2940.1,2938.9,5.8334]
[1766065565237,0.002,2940.1,2939.2,7.6722]
[1766065565752,0.002,2940.1,2938.9,3.98362573]
[1766065565753,0.002,2940.1,2939.4,7.6722]
[1766065565956,0.002,2940.1,2939.4,8.2532]
[1766065566104,0.002,2940.1,2939.4,9.07852]
[1766065566444,0.002,2940.1,2939.4,1.40632]
[1766065566628,0.002,2940.1,2939.4,0.581]
[1766065567539,0.002,2940.1,2939.0,7.6722]
[1766065567730,0.002,2940.1,2938.8,0.581]
[1766065567934,0.002,2940.1,2939.3,7.6722]
[1766065568112,0.002,2940.1,2939.5,5.2524]
[1766065568306,0.002,2940.1,2939.5,7.6722]
[1766065568532,0.0042,2940.8,2939.8,2.4198]
[1766065568848,0.0042,2940.8,2940.1,7.6722]
[1766065569051,0.002,2940.9,2939.9,0.581]
[1766065569052,0.002,2941.3,2940.6,5.2524]
[1766065569340,0.002,2941.3,2940.7,5.2524]
[1766065570346,0.002,2941.3,2940.7,5.8334]
[1766065570551,0.002,2941.3,2940.7,0.581]
[1766065570919,0.002,2941.3,2940.3,5.2524]
[1766065571248,0.002,2941.3,2940.4,8.2532]
[1766065571628,0.002,2941.3,2940.5,7.6722]
[1766065572842,0.002,2941.3,2940.4,0.581]
[1766065572843,0.002,2941.3,2940.1,8.0486]
[1766065573157,2.1774,2940.7,2939.6,0.58]
[1766065573379,0.43575,2940.6,2939.6,0.58]
[1766065573645,0.43575,2940.6,2939.4,2.3878]
[1766065573940,0.43575,2940.6,2939.7,0.58]
[1766065574143,0.04449966,2941.2,2939.7,0.58]
[1766065574144,0.002,2941.2,2939.7,0.58]
[1766065574346,0.002,2941.2,2940.1,8.0486]
[1766065574521,0.002,2941.2,2940.3,2.3878]
[1766065574720,0.002,2941.2,2940.6,5.6608]
[1766065574923,0.002,2941.3,2940.8,8.0486]
[1766065575336,0.002,2941.3,2940.2,0.09523648]
[1766065575513,0.002,2941.3,2940.5,2.3878]
[1766065575715,0.002,2941.3,2940.7,2.3878]
[1766065575910,0.002,2942.0,2941.2,5.6608]
[1766065576145,0.002,2942.0,2941.5,8.0486]
[1766065576449,0.002,2942.0,2941.5,11.44821428]
[1766065576610,0.002,2942.0,2941.6,2.3878]
[1766065576818,0.003,2943.0,2942.0,5.6608]
[1766065577059,0.003,2943.0,2942.1,0.58]
[1766065577420,0.003,2943.0,2942.1,6.2408]
[1766065577725,0.003,2943.0,2942.1,8.6286]
[1766065577929,0.003,2943.0,2942.3,2.3878]
[1766065578243,0.003,2943.0,2942.4,5.6608]
[1766065578442,3.39920973,2943.6,2942.5,8.6286]
[1766065578443,0.002,2943.6,2942.5,8.6286]
[1766065578643,0.002,2943.0,2942.5,8.6286]
[1766065579254,0.002,2943.6,2942.5,0.58]
[1766065579418,0.002,2943.6,2942.8,5.6608]
[1766065579630,0.002,2943.6,2942.7,2.48303648]
[1766065579631,0.002,2943.6,2942.9,0.58]
[1766065580018,0.002,2943.6,2943.0,8.0486]
[1766065580424,0.005,2944.2,2943.0,0.86286]
[1766065580618,0.005,2944.2,2943.2,5.6608]
[1766065580844,0.005,2944.2,2942.7,3.49346881]
[1766065580845,0.005,2944.2,2943.3,0.58]
[1766065581039,0.005,2944.2,2943.4,8.0486]
[1766065581320,0.005,2944.2,2943.5,8.0486]
[1766065581519,0.6,2944.6,2943.3,0.58]
[1766065581719,0.5992,2945.0,2944.0,5.6608]
[1766065582030,0.5992,2945.0,2944.2,5.6608]
[1766065582349,0.5992,2945.0,2943.9,0.58]
[1766065582350,2.8371,2944.6,2943.0,8.0486]
[1766065582519,0.04245058,2944.6,2943.4,8.0486]
[1766065582719,0.04245202,2944.5,2943.0,5.6608]
[1766065582955,2.8371,2944.4,2943.1,0.59260842]
[1766065583125,0.50165,2944.3,2943.1,8.6286]
[1766065583454,2.1814,2945.4,2943.2,0.09523648]
[1766065583632,2.1814,2945.4,2943.6,5.6608]
[1766065583633,0.04244626,2944.9,2943.6,5.6608]
[1766065583947,7.39051564,2945.0,2943.5,2.3878]
[1766065583948,2.8411,2944.8,2943.7,0.58]
[1766065584150,5.0205,2944.8,2943.7,0.58]
[1766065584315,0.58,2944.7,2943.5,8.0486]
[1766065584522,0.5992,2945.0,2943.6,8.0486]
[1766065584828,0.5992,2945.0,2943.7,0.58]
[1766065584829,2.1794,2944.8,2943.7,0.58]
[1766065585040,2.1794,2944.5,2943.3,8.0486]
[1766065585219,3.46745202,2944.5,2942.9,5.75603648]
[1766065585424,2.1794,2944.4,2943.0,0.58]
[1766065585750,2.1794,2943.8,2942.5,7.8422]
[1766065586051,0.58,2944.0,2942.7,7.8422]
[1766065586218,2.7594,2944.0,2942.7,7.8422]
[1766065586419,6.7939398,2943.8,2942.7,7.8422]
[1766065586618,2.8566,2943.7,2942.5,0.579]
[1766065586846,2.1794,2943.6,2942.5,0.579]
[1766065587225,3.3969699,2943.8,2941.4,2.4878]
[1766065587226,2.1794,2943.4,2941.4,2.4878]
[1766065587422,2.1794,2942.8,2941.5,5.9334]
[1766065587819,0.79694,2943.3,2941.8,0.09523648]
[1766065588030,0.579,2943.3,2942.0,0.09523648]
[1766065588237,5.08607078,2943.2,2942.1,0.579]
[1766065588437,5.57707644,2943.2,2942.1,0.579]
[1766065588763,2.1794,2942.9,2941.5,8.4212]
[1766065589061,2.1794,2942.9,2941.7,5.3544]
[1766065589266,0.50436,2942.8,2941.7,5.3544]
[1766065589564,2.8679,2942.7,2941.5,0.579]
[1766065590136,0.579,2943.1,2941.6,0.09523648]
[1766065590364,0.579,2943.1,2941.8,7.8422]
[1766065590665,8.9751866,2943.0,2941.8,7.8422]
[1766065590965,8.9751866,2943.0,2940.8,0.09523648]
[1766065590966,2.1794,2942.4,2940.8,0.09523648]
[1766065591168,0.405504,2942.2,2940.6,0.09523648]
[1766065591542,2.8753,2941.9,2940.6,0.09523648]
[1766065591745,2.8753,2941.5,2940.1,5.3544]
[1766065591949,2.8753,2941.3,2940.2,0.579]
[1766065592201,0.579,2941.5,2940.3,7.8422]
[1766065592369,2.1794,2941.3,2940.2,0.579]
[1766065592538,5.0582,2941.1,2940.0,0.09523648]
[1766065592737,0.27584,2941.3,2940.0,11.91779226]
[1766065592976,0.579,2941.5,2940.3,5.3544]
[1766065593267,5.0582,2942.1,2940.5,0.09523648]
[1766065593465,5.0582,2942.1,2940.8,5.3544]
[1766065593869,3.97782173,2942.2,2940.9,2.58303648]
[1766065594055,0.579,2942.2,2940.9,0.09523648]
[1766065594254,3.3972211,2943.6,2940.9,0.09523648]
[1766065594255,8.87126667,2943.8,2941.0,24.401356]
[1766065594454,6.7953248,2943.2,2941.6,2.4878]
[1766065594659,5.0643,2943.0,2941.7,5.3544]
[1766065594860,0.579,2942.9,2941.7,5.3544]
[1766065595259,2.1784,2942.4,2940.7,0.55961671]
[1766065595446,2.1784,2942.2,2940.9,4.07547447]
[1766065595650,2.1784,2942.2,2941.0,0.40754745]
[1766065596085,0.579,2942.3,2941.4,7.8422]
[1766065596294,0.579,2942.3,2941.4,8.4212]
[1766065596593,2.1784,2942.0,2940.9,0.09623648]
[1766065596895,3.39881721,2942.2,2940.9,0.09623648]
[1766065597098,6.11958902,2942.2,2940.9,0.70872378]
[1766065597312,2.72077181,2942.2,2940.9,4.10903263]
[1766065597601,2.7574,2942.2,2941.0,5.3544]
[1766065598160,0.579,2942.2,2940.9,0.6134873]
[1766065598364,2.1784,2942.1,2940.9,0.001]
[1766065598770,2.1784,2942.1,2940.9,7.8432]
[1766065598969,2.8996,2942.1,2940.9,0.001]
[1766065599169,2.1784,2942.0,2940.9,0.001]
[1766065599997,2.1784,2942.5,2941.1,2.4878]
[1766065600168,6.14295465,2942.5,2941.2,1.36322]
[1766065600499,6.14295465,2942.5,2940.9,0.001]
[1766065600500,2.9061,2942.3,2940.9,0.001]
[1766065600661,2.9061,2942.1,2940.9,0.001]
[1766065600866,0.579,2942.0,2940.9,0.001]
[1766065601286,0.579,2941.9,2940.9,0.001]
[1766065601869,1.6052,2941.8,2940.9,0.001]
[1766065602073,0.579,2941.9,2940.7,0.09523648]
[1766065602074,4.5135,2941.6,2940.7,0.09523648]
[1766065602673,0.04249532,2941.5,2940.3,7.8216]
[1766065602911,0.04249532,2941.5,2940.2,0.09523648]
[1766065602912,0.579,2941.4,2940.2,0.09523648]
[1766065603401,0.579,2941.4,2940.2,11.44982874]
[1766065603607,0.04249821,2941.3,2940.2,5.4863]
[1766065603815,1.6042,2941.3,2940.2,0.55815365]
[1766065604008,1.6042,2941.3,2940.2,3.40107886]
[1766065604207,1.6042,2941.3,2940.2,3.4011287]
[1766065604418,1.6042,2942.0,2940.0,0.09523648]
[1766065604616,0.002,2942.3,2941.0,7.9535]
[1766065604918,0.579,2942.0,2941.0,7.9535]
[1766065605082,0.04248954,2941.9,2941.1,0.79535]
[1766065605416,0.579,2941.8,2941.1,0.79535]
[1766065606082,0.579,2941.8,2940.7,0.579]
[1766065606411,0.579,2941.8,2940.9,7.9535]
[1766065606577,0.5782,2941.8,2940.9,11.35376954]
[1766065606781,0.002,2942.3,2941.3,2.4672]
[1766065607009,0.002,2942.3,2941.5,2.4672]
[1766065607313,0.002,2942.3,2941.5,7.9535]
[1766065608209,0.002,2942.3,2941.4,0.24672]
[1766065608411,0.002,2942.3,2941.0,0.09523648]
[1766065608709,0.002,2942.3,2941.2,5.86716124]
[1766065608901,0.04448377,2942.3,2941.2,2.4672]
[1766065609100,1.6062,2942.3,2941.2,3.39993893]
[1766065609413,3.39802752,2942.9,2941.2,3.39993893]
[1766065609414,1.6042,2943.3,2941.9,5.4863]
[1766065609616,2.9126,2942.9,2942.0,0.55815365]
[1766065609823,3.9607,2942.5,2941.6,0.09523648]
[1766065609984,4.5397,2942.4,2941.0,5.58153648]
[1766065610312,0.579,2942.4,2941.0,0.09523648]
[1766065610519,0.579,2942.4,2941.3,0.001]
[1766065610711,0.579,2942.4,2941.3,0.79645]
[1766065610712,0.002,2942.3,2941.3,0.79645]
[1766065611026,3.584,2943.1,2941.3,0.79645]
[1766065611027,2.3534,2943.2,2941.3,0.79645]
[1766065611224,0.578,2943.1,2941.3,0.79645]
[1766065611530,0.578,2943.0,2941.9,7.9535]
[1766065611917,3.9596,2943.2,2941.9,7.9535]
[1766065612125,0.578,2942.9,2942.0,0.79535]
[1766065612632,0.578,2942.9,2942.1,3.39893273]
[1766065612935,0.578,2942.9,2942.0,4.19436381]
[1766065613104,0.578,2943.1,2942.2,5.4863]
[1766065613304,0.62047366,2943.0,2941.8,5.4863]
[1766065613511,0.62047366,2943.0,2942.0,11.35253744]
[1766065613512,0.578,2943.0,2942.0,11.35253744]
[1766065613712,0.578,2943.0,2942.0,7.9535]
[1766065614037,0.578,2943.0,2942.0,11.35253383]
[1766065614205,0.578,2942.9,2942.2,7.9535]
[1766065614400,0.002,2943.5,2942.3,0.01264135]
[1766065614630,0.578,2943.4,2942.4,7.9535]
[1766065615850,0.58,2943.5,2942.5,7.9535]
[1766065616143,0.58,2943.5,2942.1,3.3988811]
[1766065616144,3.97733575,2943.5,2942.1,3.3988811]
[1766065616440,2.349,2943.2,2942.0,7.9535]
[1766065616617,7.3746715,2943.5,2941.7,0.578]
[1766065616618,3.9552,2943.0,2941.7,0.578]
[1766065616818,0.97776722,2942.9,2941.7,1.43115]
[1766065617033,3.9552,2942.8,2941.7,0.85315]
[1766065617223,3.99767655,2942.8,2941.7,0.85315]
[1766065617429,1.6062,2942.5,2941.3,0.001]
[1766065617639,2.1842,2942.4,2941.3,0.001]
[1766065617847,0.578,2942.3,2941.5,3.39956596]
[1766065618047,0.578,2942.3,2941.4,7.9535]
[1766065618352,0.578,2942.3,2941.6,3.39940783]
[1766065618524,0.578,2942.3,2941.3,0.001]
[1766065619445,2.1842,2942.3,2941.3,0.001]
[1766065619642,4.53,2942.3,2941.3,0.001]
[1766065619826,1.6062,2942.1,2941.3,0.001]
[1766065620446,3.39781805,2943.1,2941.7,2.4672]
[1766065620447,3.951,2943.1,2941.7,2.4672]
[1766065620648,0.002,2943.4,2942.2,6.79763442]
[1766065620855,0.002,2943.5,2942.6,2.488]
[1766065621019,0.578,2944.2,2942.9,8.083]
[1766065621225,0.578,2944.2,2942.3,8.54738023]
[1766065621226,3.97459372,2944.2,2942.3,8.54738023]
[1766065621424,1.6081,2944.0,2942.5,8.083]
[1766065621641,3.0799014,2944.1,2942.4,1.59230146]
[1766065621642,3.0799014,2944.1,2942.4,1.68753794]
[1766065621952,0.578,2943.9,2943.0,2.488]
[1766065622148,3.39812989,2944.6,2942.8,8.083]
[1766065622149,0.002,2944.6,2942.8,8.083]
[1766065622351,0.002,2944.6,2943.2,2.488]
[1766065622539,0.002,2944.6,2943.6,8.083]
[1766065623349,1.6081,2944.5,2943.2,8.083]
[1766065623565,1.6081,2944.5,2943.2,11.48056279]
[1766065623566,0.3951,2944.4,2943.2,11.48056279]
[1766065623847,0.3951,2944.4,2943.2,8.083]
[1766065624048,0.002,2944.6,2943.5,11.48024653]
[1766065624227,0.002,2944.6,2944.0,2.488]
[1766065624431,0.002,2944.6,2944.0,8.083]
[1766065624628,0.002,2944.6,2943.4,0.09523648]
[1766065624629,0.002,2944.6,2943.5,5.8852967]
[1766065624830,0.002,2944.6,2943.5,2.57173]
[1766065625051,0.002,2944.6,2943.9,5.595]
[1766065625223,0.002,2944.6,2944.0,8.083]
[1766065625419,0.002,2944.7,2944.0,5.595]
[1766065625648,0.002,2944.7,2944.2,5.595]
[1766065626859,0.5992,2945.0,2944.6,5.595]
[1766065627027,1.6101,2946.0,2944.7,8.083]
[1766065627220,0.577,2945.9,2944.7,8.083]
[1766065627423,0.577,2945.9,2944.9,2.488]
[1766065627723,0.002,2945.8,2944.9,8.083]
[1766065628123,0.002,2945.8,2944.7,8.10209014]
[1766065628353,0.002,2945.8,2945.0,5.595]
[1766065628555,0.002,2945.8,2945.1,8.083]
[1766065629452,0.002,2945.8,2944.6,3.39601851]
[1766065629453,0.002,2945.8,2944.7,0.09523648]
[1766065629659,0.002,2945.8,2945.2,8.083]
[1766065631147,0.002,2945.8,2945.0,0.577]
[1766065631466,0.0012,2945.8,2945.0,0.577]
[1766065632039,2.2045,2945.8,2944.5,8.083]
[1766065632229,1.03096,2945.7,2944.5,5.595]
[1766065632425,0.0012,2945.8,2945.3,5.5116]
[1766065632659,2.3333,2946.8,2945.3,5.5116]
[1766065632660,2.2033,2946.5,2945.3,7.9507]
[1766065632959,2.2033,2946.1,2944.8,8.04593648]
[1766065633136,2.3333,2946.7,2945.2,2.4391]
[1766065633340,0.577,2946.4,2945.2,7.9507]
[1766065633744,2.2033,2946.3,2945.2,7.9507]
[1766065633943,0.51127,2946.2,2945.2,7.9507]
[1766065634140,3.3935116,2946.8,2945.2,3.0161]
[1766065634482,0.10836604,2946.9,2946.1,7.9507]
[1766065634660,0.10836604,2946.9,2946.3,2.4391]
[1766065635260,0.002,2947.0,2946.4,8.04593648]
[1766065635559,0.002,2947.5,2946.6,7.9507]
[1766065635730,0.002,2947.5,2946.8,2.4391]
[1766065635930,0.002,2947.5,2946.9,0.09523648]
[1766065636148,0.002,2947.5,2946.8,0.577]
[1766065636461,3.81787756,2949.9,2947.5,5.5116]
[1766065636632,3.39075972,2949.2,2948.1,7.9507]
[1766065636830,3.39075972,2949.2,2946.8,2.4391]
[1766065636831,2.2083,2948.4,2946.8,2.4391]
[1766065637032,5.59942441,2948.9,2947.5,0.09523648]
[1766065637228,0.79372332,2948.8,2947.6,7.9507]
[1766065637428,2.2083,2948.4,2947.2,5.5116]
[1766065637670,2.2083,2948.4,2947.1,2.53433648]
[1766065637671,2.2083,2948.3,2947.1,2.4391]
[1766065637841,2.2083,2948.3,2946.9,0.09523648]
[1766065637842,0.576,2948.3,2947.6,5.5116]
[1766065638043,0.61839012,2948.8,2947.8,0.16855658]
[1766065638368,0.576,2948.9,2947.9,2.3e-07]
[1766065638665,6.78818295,2949.0,2947.4,0.09523648]
[1766065638894,0.576,2948.8,2947.6,0.09523648]
[1766065639029,0.00620877,2949.0,2948.2,2.3e-07]
[1766065639231,0.58220877,2949.0,2948.2,2.3e-07]
[1766065639665,0.00620877,2949.0,2948.0,0.09523648]
[1766065639828,1.04038023,2948.9,2948.0,0.09523648]
[1766065640034,0.4437586,2948.8,2948.0,0.09523648]
[1766065640236,0.4437586,2948.8,2947.6,7.9507]
[1766065640467,0.46438023,2948.5,2947.4,0.09523648]
[1766065640650,0.46438023,2948.5,2947.6,0.09523648]
[1766065640839,3.85601702,2948.5,2947.6,0.09523648]
[1766065641165,5.3634,2948.1,2946.7,2.4391]
[1766065641365,0.46438023,2947.4,2946.3,0.09523648]
[1766065641544,0.46438023,2947.7,2945.8,5.5116]
[1766065641545,0.576,2947.3,2945.8,5.5116]
[1766065641746,0.576,2947.2,2946.4,0.09523648]
[1766065642264,1.10475825,2947.2,2946.1,0.09523648]
[1766065642467,0.576,2947.1,2946.4,0.09523648]
[1766065642766,0.46438023,2947.6,2946.4,2.53433648]
[1766065642931,3.39228798,2947.9,2946.6,0.09523648]
[1766065642932,2.5712,2947.9,2946.6,0.09523648]
[1766065643139,0.46438023,2947.8,2946.8,0.09523648]
[1766065643463,0.87955802,2947.7,2946.8,0.09523648]
[1766065643652,8.39898023,2947.5,2946.1,8.04593648]
[1766065643856,8.39898023,2947.5,2946.3,0.09523648]
[1766065644254,5.3634,2947.3,2946.3,0.09523648]
[1766065644569,2.5712,2946.9,2945.3,0.09523648]
[1766065644735,0.46438023,2946.3,2944.9,2.53433648]
[1766065644938,5.82778023,2946.1,2944.9,2.53433648]
[1766065645161,0.576,2946.0,2944.9,2.53433648]
[1766065645338,5.9394,2946.0,2944.9,2.53433648]
[1766065645534,5.3634,2946.0,2944.9,2.53433648]
[1766065645765,0.576,2945.9,2944.9,2.53433648]
[1766065646276,0.576,2945.8,2944.9,8.04593648]
[1766065646485,0.576,2945.7,2945.0,7.9507]
[1766065646695,6.7878085,2946.5,2945.2,7.9507]
[1766065646696,0.46438023,2946.3,2945.2,7.9507]
[1766065646854,0.576,2946.2,2945.2,7.9507]
[1766065647167,0.576,2946.1,2944.9,0.09523648]
[1766065647369,2.5712,2947.0,2945.6,2.4391]
[1766065647558,5.3634,2946.6,2945.4,5.5116]
[1766065647758,0.576,2946.5,2945.5,7.9507]
[1766065647972,5.3634,2946.6,2945.5,7.9507]
[1766065648173,8.10209014,2946.7,2945.6,0.7926327]
[1766065648347,2.5712,2947.2,2945.9,5.5116]
[1766065648545,13.46549014,2946.9,2945.8,0.09523648]
[1766065648740,0.576,2946.8,2945.8,0.09523648]
[1766065648994,0.002,2948.2,2947.0,5.5116]
[1766065649269,0.002,2948.2,2946.3,0.09523648]
[1766065649270,8.10209014,2947.7,2946.3,6.0919]
[1766065649469,8.10209014,2947.7,2946.5,5.5116]
[1766065649646,8.10209014,2947.7,2946.4,0.60919]
[1766065649647,2.5712,2947.5,2946.4,0.60919]
[1766065649841,8.10209014,2947.3,2946.0,5.5116]
[1766065650149,0.576,2947.2,2946.0,6.0919]
[1766065650344,5.3634,2947.5,2946.0,6.0919]
[1766065650672,0.46438023,2947.9,2946.0,6.0919]
[1766065650673,2.5712,2947.3,2946.0,6.0919]
[1766065650877,5.70188471,2948.9,2946.6,5.5116]
[1766065650878,2.5712,2948.0,2946.6,5.5116]
[1766065651044,1.36946,2947.9,2946.6,6.788249]
[1766065651397,0.00620877,2949.0,2948.2,4.400035]
[1766065651673,0.00620877,2949.0,2947.8,0.09523648]
[1766065651674,0.576,2949.5,2948.9,5.60683648]
[1766065651841,0.576,2949.4,2948.9,5.60683648]
[1766065652242,1.5,2950.0,2948.9,5.60683648]
[1766065652444,0.576,2949.9,2948.9,5.60683648]
[1766065652649,0.526,2949.9,2948.9,5.60683648]
[1766065652849,0.526,2949.9,2948.9,5.60913648]
[1766065653276,0.526,2949.9,2949.0,8.170608]
[1766065653467,3.38851879,2951.2,2948.6,0.09523648]
[1766065653468,3.38753387,2952.0,2949.1,5.5116]
[1766065653672,3.38753387,2952.0,2947.8,3.95190432]
[1766065653673,2.5712,2950.8,2949.9,0.09523648]
[1766065653871,5.9384,2950.7,2950.1,0.09523648]
[1766065654177,6.21436,2950.7,2950.0,0.09523648]
[1766065654566,5.3634,2951.2,2950.6,3.648e-05]
[1766065654767,7.9346,2951.0,2950.9,0.09523648]
[1766065655082,7.9346,2951.0,2950.8,0.09523648]
[1766065655281,2.5712,2951.0,2950.5,0.09523648]
[1766065655451,2.5712,2951.0,2950.9,0.09523648]
[1766065655653,4.27851767,2951.0,2950.9,0.09523648]
[1766065656011,4.27851767,2951.0,2950.5,0.09523648]
[1766065656012,3.70271767,2951.0,2950.7,0.09523648]
[1766065656177,3.70271767,2951.0,2950.9,0.09523648]
[1766065656359,5.3634,2950.8,2950.4,7.296e-05]
[1766065656560,5.3634,2950.7,2949.1,0.09523648]
[1766065656778,0.46438023,2950.9,2949.9,0.09523648]
[1766065656779,5.3634,2950.2,2949.9,0.09523648]
[1766065657085,5.3634,2950.2,2948.5,1.38073648]
[1766065657086,5.3634,2950.0,2949.7,0.09523648]
[1766065657284,5.3634,2950.0,2949.5,0.09523648]
[1766065657496,1.73529052,2950.6,2949.8,0.09523648]
[1766065657797,5.82778023,2950.2,2949.2,0.09523648]
[1766065657951,2.5712,2949.9,2949.4,3.648e-05]
[1766065658152,0.04237575,2949.8,2949.5,0.09523648]
[1766065658352,6.77828677,2950.6,2949.5,0.09523648]
[1766065658353,7.81008313,2950.6,2949.7,0.09523648]
[1766065658571,7.81008313,2950.6,2949.6,0.09523648]
[1766065658572,5.3634,2950.0,2949.6,0.09523648]
[1766065658773,0.575,2949.9,2949.3,7.296e-05]
[1766065658978,2.5712,2949.7,2949.3,7.296e-05]
[1766065659192,0.575,2949.9,2949.6,0.09523648]
[1766065659351,5.3634,2949.7,2949.3,0.09523648]
[1766065659557,7.35498048,2949.9,2949.2,0.09523648]
[1766065659558,7.9346,2949.4,2949.2,0.09523648]
[1766065659764,0.575,2949.3,2948.9,0.09523648]
[1766065659972,0.575,2949.3,2948.2,2.53433648]
[1766065660175,2.5712,2952.5,2949.2,0.09523648]
[1766065660484,2.5712,2952.5,2948.9,0.09523648]
[1766065660485,7.9346,2950.2,2949.0,0.09523648]
[1766065660655,9.30306,2950.1,2949.0,0.09523648]
[1766065660851,0.575,2950.0,2948.9,5.60683648]
[1766065661056,0.575,2949.9,2949.1,0.09523648]
[1766065661461,0.575,2949.9,2948.4,0.09523648]
[1766065661462,7.9346,2949.7,2948.2,8.04593648]
[1766065661667,7.9346,2949.8,2948.2,8.04593648]
[1766065661864,0.79346,2949.7,2948.6,0.09523648]
[1766065662064,0.575,2949.6,2949.0,5.60683648]
[1766065662369,0.575,2949.7,2949.3,0.09523648]
[1766065662694,0.575,2949.7,2949.0,5.60683648]
[1766065662892,0.575,2949.7,2948.8,0.09523648]
[1766065663098,0.46438023,2950.0,2949.0,0.09523648]
[1766065663273,0.46438023,2950.0,2948.4,0.09523648]
[1766065663274,0.575,2949.8,2948.4,5.88973648]
[1766065663472,0.575,2949.8,2948.4,0.09523648]
[1766065663678,2.5674,2950.1,2948.8,5.47984429]
[1766065663887,0.575,2950.0,2949.0,5.88973648]
[1766065664081,0.575,2949.9,2949.0,0.09523648]
[1766065664392,8.3224,2950.1,2949.0,0.09523648]
[1766065664687,0.002,2951.0,2949.8,0.09523648]
[1766065664857,0.002,2951.0,2949.2,5.7945]
[1766065664858,2.5674,2950.6,2949.2,5.7945]
[1766065665057,0.46438023,2950.5,2949.2,5.7945]
[1766065665482,0.575,2950.4,2949.2,5.7945]
[1766065665681,0.575,2950.4,2948.5,0.09523648]
[1766065665682,0.575,2950.3,2949.3,5.7945]